[Event "*** Titled Tuesday Blitz"]
[Site "Chess.com"]
[Date "2020.12.29"]
[Round "8"]
[White "zverr1"]
[Black "Andrakhanova"]
[Result "0-1"]
[WhiteElo "2421"]
[BlackElo "2256"]
[TimeControl "180+1"]
[EndTime "11:26:17 PST"]
[Termination "Andrakhanova won by resignation"]

1. e4 {[%clk 0:03:00.9]} 1... c5 {[%clk 0:02:56.7]} 2. d4 {[%clk 0:03:00.5]}
2... cxd4 {[%clk 0:02:56.2]} 3. c3 {[%clk 0:03:01]} 3... d3 {[%clk 0:02:56.6]}
4. c4 {[%clk 0:03:01.3]} 4... e6 {[%clk 0:02:55.1]} 5. Nc3 {[%clk 0:03:00.6]}
5... Nc6 {[%clk 0:02:52.9]} 6. Bxd3 {[%clk 0:02:58.9]} 6... Bb4 {[%clk
0:02:52.3]} 7. Ne2 {[%clk 0:02:57.4]} 7... Nge7 {[%clk 0:02:52.2]} 8. O-O {[%clk
0:02:57.1]} 8... Ne5 {[%clk 0:02:51]} 9. Be3 {[%clk 0:02:53.1]} 9... O-O {[%clk
0:02:48.4]} 10. a3 {[%clk 0:02:50.3]} 10... Ba5 {[%clk 0:02:47.3]} 11. b4 {[%clk
0:02:49.9]} 11... Bc7 {[%clk 0:02:45.9]} 12. f4 {[%clk 0:02:47.4]} 12... Nxd3
{[%clk 0:02:45.4]} 13. Qxd3 {[%clk 0:02:47.5]} 13... f5 {[%clk 0:02:38.2]} 14.
Rad1 {[%clk 0:02:37.5]} 14... fxe4 {[%clk 0:02:34.6]} 15. Qxe4 {[%clk
0:02:38.4]} 15... Nf5 {[%clk 0:02:33.2]} 16. Nd4 {[%clk 0:02:35.1]} 16... Nxe3
{[%clk 0:02:31.1]} 17. Qxe3 {[%clk 0:02:36]} 17... Qh4 {[%clk 0:02:18.6]} 18. g3
{[%clk 0:02:32.9]} 18... Qh6 {[%clk 0:02:18.4]} 19. Ndb5 {[%clk 0:02:30.5]}
19... Bb8 {[%clk 0:02:15.9]} 20. Ne4 {[%clk 0:02:27.9]} 20... e5 {[%clk
0:01:56.5]} 21. Ned6 {[%clk 0:02:21.3]} 21... a6 {[%clk 0:01:50.8]} 22. fxe5
{[%clk 0:02:17.1]} 22... Qxe3+ {[%clk 0:01:45.8]} 23. Kg2 {[%clk 0:02:15.7]}
23... Rxf1 {[%clk 0:01:39.9]} 24. Rxf1 {[%clk 0:02:16.6]} 24... axb5 {[%clk
0:01:39.3]} 25. Nxc8 {[%clk 0:02:16.8]} 25... Bxe5 {[%clk 0:01:33.1]} 26. Ne7+
{[%clk 0:02:09.4]} 26... Kh8 {[%clk 0:01:32]} 27. Nd5 {[%clk 0:01:57.6]} 27...
Qe4+ {[%clk 0:01:29.1]} 28. Kh3 {[%clk 0:01:42.9]} 28... bxc4 {[%clk 0:01:28.7]}
29. Nb6 {[%clk 0:01:36.9]} 29... Re8 {[%clk 0:01:15.4]} 30. Rf7 {[%clk
0:01:25.1]} 30... Qg6 {[%clk 0:01:07.4]} 31. Rxd7 {[%clk 0:01:23.9]} 31... Qxb6
{[%clk 0:01:06.9]} 32. g4 {[%clk 0:01:17.7]} 32... Qh6+ {[%clk 0:01:02.1]} 33.
Kg2 {[%clk 0:01:17.1]} 33... Qxh2+ {[%clk 0:01:03]} 34. Kf3 {[%clk 0:01:18]}
34... Qf4+ {[%clk 0:00:59.2]} 35. Kg2 {[%clk 0:01:18.1]} 35... Qxg4+ {[%clk
0:00:58.5]} 36. Kf2 {[%clk 0:01:18.1]} 36... Qxd7 {[%clk 0:00:55.5]} 37. Ke3
{[%clk 0:01:18.5]} 37... Qd4+ {[%clk 0:00:54.5]} 38. Ke2 {[%clk 0:01:18.7]}
38... Rf8 {[%clk 0:00:55.1]} 39. b5 {[%clk 0:01:18.4]} 39... Rf2+ {[%clk
0:00:56]} 0-1

[Event "*** Titled Tuesday Blitz"]
[Site "Chess.com"]
[Date "2020.12.29"]
[Round "8"]
[White "MokshanovAlexey"]
[Black "elamier"]
[Result "1-0"]
[WhiteElo "2642"]
[BlackElo "2432"]
[TimeControl "180+1"]
[EndTime "11:26:19 PST"]
[Termination "MokshanovAlexey won by resignation"]

1. e4 {[%clk 0:03:00.9]} 1... c5 {[%clk 0:02:58.8]} 2. Nf3 {[%clk 0:03:00.5]}
2... Nc6 {[%clk 0:02:58.5]} 3. Bb5 {[%clk 0:03:00.4]} 3... g6 {[%clk 0:02:55.7]}
4. Bxc6 {[%clk 0:03:00.2]} 4... dxc6 {[%clk 0:02:55.6]} 5. O-O {[%clk
0:03:00.6]} 5... Bg7 {[%clk 0:02:55.5]} 6. h3 {[%clk 0:03:00.9]} 6... Nf6 {[%clk
0:02:53.2]} 7. Nc3 {[%clk 0:03:00.1]} 7... Nd7 {[%clk 0:02:53]} 8. d3 {[%clk
0:02:58.7]} 8... e5 {[%clk 0:02:52.1]} 9. a3 {[%clk 0:02:58.2]} 9... O-O {[%clk
0:02:51.5]} 10. b4 {[%clk 0:02:58.3]} 10... Re8 {[%clk 0:02:42.7]} 11. Be3
{[%clk 0:02:56.9]} 11... cxb4 {[%clk 0:02:31.3]} 12. axb4 {[%clk 0:02:55.7]}
12... b6 {[%clk 0:02:16.7]} 13. b5 {[%clk 0:02:54.3]} 13... c5 {[%clk
0:02:16.1]} 14. Nd5 {[%clk 0:02:53]} 14... Bb7 {[%clk 0:02:11.1]} 15. c4 {[%clk
0:02:52.3]} 15... Nf8 {[%clk 0:02:09.5]} 16. Ra4 {[%clk 0:02:43.3]} 16... Ne6
{[%clk 0:02:05.1]} 17. Qa1 {[%clk 0:02:42.2]} 17... Nf4 {[%clk 0:01:47.5]} 18.
Bxf4 {[%clk 0:02:25.1]} 18... exf4 {[%clk 0:01:47]} 19. Qa2 {[%clk 0:02:25.5]}
19... Bxd5 {[%clk 0:01:45.4]} 20. cxd5 {[%clk 0:02:21.8]} 20... Qd7 {[%clk
0:01:43.7]} 21. Qb3 {[%clk 0:02:14.1]} 21... h6 {[%clk 0:01:36.5]} 22. Re1
{[%clk 0:02:01.2]} 22... g5 {[%clk 0:01:27.4]} 23. e5 {[%clk 0:02:00.6]} 23...
Qf5 {[%clk 0:01:20]} 24. Rae4 {[%clk 0:01:55.6]} 24... h5 {[%clk 0:01:08.3]} 25.
e6 {[%clk 0:01:50.5]} 25... fxe6 {[%clk 0:01:07.8]} 26. dxe6 {[%clk 0:01:50.5]}
26... Kh8 {[%clk 0:01:07.4]} 27. Re5 {[%clk 0:01:50.1]} 27... Bxe5 {[%clk
0:00:58.1]} 28. Rxe5 {[%clk 0:01:51]} 28... Qf6 {[%clk 0:00:54.3]} 29. Rxg5
{[%clk 0:01:50.9]} 29... Rxe6 {[%clk 0:00:44.6]} 30. Rxh5+ {[%clk 0:01:50.3]}
30... Kg7 {[%clk 0:00:40.4]} 31. Qd5 {[%clk 0:01:43]} 31... Rae8 {[%clk
0:00:36.1]} 32. Rg5+ {[%clk 0:01:41.5]} 32... Kf8 {[%clk 0:00:29.2]} 33. Rf5
{[%clk 0:01:40.8]} 33... Kg7 {[%clk 0:00:22.4]} 34. Rxf6 {[%clk 0:01:40.1]}
34... Kxf6 {[%clk 0:00:21.9]} 1-0

[Event "*** Titled Tuesday Blitz"]
[Site "Chess.com"]
[Date "2020.12.29"]
[Round "8"]
[White "FontVella8"]
[Black "francyIM"]
[Result "1-0"]
[WhiteElo "2542"]
[BlackElo "2683"]
[TimeControl "180+1"]
[EndTime "11:26:20 PST"]
[Termination "FontVella8 won by resignation"]

1. e4 {[%clk 0:03:00.9]} 1... d6 {[%clk 0:02:56.9]} 2. d4 {[%clk 0:03:00.5]}
2... Nf6 {[%clk 0:02:57]} 3. Nc3 {[%clk 0:03:01.2]} 3... e5 {[%clk 0:02:56.9]}
4. Nf3 {[%clk 0:03:00.9]} 4... Nbd7 {[%clk 0:02:54]} 5. Bc4 {[%clk 0:02:59.9]}
5... Be7 {[%clk 0:02:53.8]} 6. O-O {[%clk 0:02:59.8]} 6... O-O {[%clk
0:02:53.4]} 7. Re1 {[%clk 0:03:00.1]} 7... a6 {[%clk 0:02:53.1]} 8. a4 {[%clk
0:02:59.8]} 8... b6 {[%clk 0:02:52.3]} 9. h3 {[%clk 0:02:59.3]} 9... Bb7 {[%clk
0:02:52.2]} 10. Bg5 {[%clk 0:02:55.8]} 10... h6 {[%clk 0:02:50.3]} 11. Bxf6
{[%clk 0:02:40]} 11... Bxf6 {[%clk 0:02:48.8]} 12. Bd5 {[%clk 0:02:36.9]} 12...
c6 {[%clk 0:02:48]} 13. Bb3 {[%clk 0:02:36.9]} 13... exd4 {[%clk 0:02:46.5]} 14.
Nxd4 {[%clk 0:02:36.7]} 14... g6 {[%clk 0:02:42.8]} 15. Qd2 {[%clk 0:02:13.3]}
15... Bg7 {[%clk 0:02:40.9]} 16. Rad1 {[%clk 0:02:13.1]} 16... Nc5 {[%clk
0:02:38.4]} 17. Ba2 {[%clk 0:02:09.4]} 17... b5 {[%clk 0:02:32.9]} 18. b4 {[%clk
0:02:06]} 18... Nxa4 {[%clk 0:02:32.4]} 19. Nxa4 {[%clk 0:02:06.2]} 19... bxa4
{[%clk 0:02:33.3]} 20. Nf3 {[%clk 0:01:53.9]} 20... a5 {[%clk 0:02:32.1]} 21. e5
{[%clk 0:01:38.7]} 21... d5 {[%clk 0:02:23.3]} 22. e6 {[%clk 0:01:38.1]} 22...
fxe6 {[%clk 0:02:17.7]} 23. Rxe6 {[%clk 0:01:36.2]} 23... Rf6 {[%clk 0:02:12.6]}
24. Rde1 {[%clk 0:01:29.9]} 24... Rxe6 {[%clk 0:02:00.7]} 25. Rxe6 {[%clk
0:01:30]} 25... Qd7 {[%clk 0:01:53.2]} 26. Rxg6 {[%clk 0:01:25.2]} 26... Qf5
{[%clk 0:01:52]} 27. Qxh6 {[%clk 0:01:22.2]} 27... Qd7 {[%clk 0:01:34.1]} 28.
Ng5 {[%clk 0:01:16.5]} 28... Re8 {[%clk 0:01:31.7]} 29. Qh7+ {[%clk 0:01:04.9]}
29... Kf8 {[%clk 0:01:30.8]} 30. Rf6+ {[%clk 0:00:57]} 30... Bxf6 {[%clk
0:01:10.9]} 31. Qxd7 {[%clk 0:00:56.8]} 31... Re1+ {[%clk 0:01:11.5]} 32. Kh2
{[%clk 0:00:56.5]} 32... Re7 {[%clk 0:01:12.4]} 33. Qf5 {[%clk 0:00:52]} 33...
Kg7 {[%clk 0:01:08.3]} 34. bxa5 {[%clk 0:00:49.4]} 1-0

[Event "*** Titled Tuesday Blitz"]
[Site "Chess.com"]
[Date "2020.12.29"]
[Round "8"]
[White "Kildepiotr"]
[Black "ErikRonka"]
[Result "1-0"]
[WhiteElo "2619"]
[BlackElo "2375"]
[TimeControl "180+1"]
[EndTime "11:26:23 PST"]
[Termination "Kildepiotr won by resignation"]

1. Nf3 {[%clk 0:03:00.9]} 1... d5 {[%clk 0:02:57.6]} 2. g3 {[%clk 0:03:00.7]}
2... c6 {[%clk 0:02:53.6]} 3. Bg2 {[%clk 0:03:01]} 3... Bg4 {[%clk 0:02:46.5]}
4. O-O {[%clk 0:03:00.6]} 4... Nd7 {[%clk 0:02:44.9]} 5. d3 {[%clk 0:03:00.5]}
5... e5 {[%clk 0:02:42.4]} 6. Nbd2 {[%clk 0:02:59.6]} 6... Ngf6 {[%clk
0:02:42.5]} 7. e4 {[%clk 0:02:59.4]} 7... dxe4 {[%clk 0:02:43.4]} 8. dxe4 {[%clk
0:02:59.4]} 8... Bc5 {[%clk 0:02:43.8]} 9. h3 {[%clk 0:02:59.6]} 9... Bh5 {[%clk
0:02:40.7]} 10. Qe1 {[%clk 0:03:00.1]} 10... O-O {[%clk 0:02:38.6]} 11. Nb3
{[%clk 0:02:59.3]} 11... Bb6 {[%clk 0:02:37.3]} 12. a4 {[%clk 0:02:58.8]} 12...
a5 {[%clk 0:02:32.8]} 13. Nh4 {[%clk 0:02:58.3]} 13... Bc7 {[%clk 0:02:26.4]}
14. Nf5 {[%clk 0:02:57.6]} 14... Re8 {[%clk 0:02:18.9]} 15. g4 {[%clk
0:02:57.2]} 15... Bg6 {[%clk 0:02:18.6]} 16. Ng3 {[%clk 0:02:57.8]} 16... b5
{[%clk 0:02:12.1]} 17. Qe2 {[%clk 0:02:55.2]} 17... b4 {[%clk 0:01:43.8]} 18. h4
{[%clk 0:02:52.4]} 18... h6 {[%clk 0:01:38.8]} 19. h5 {[%clk 0:02:52.1]} 19...
Bh7 {[%clk 0:01:38.5]} 20. g5 {[%clk 0:02:51.8]} 20... hxg5 {[%clk 0:01:38.1]}
21. Bxg5 {[%clk 0:02:52.7]} 21... Qc8 {[%clk 0:01:25.3]} 22. Bh3 {[%clk
0:02:46.1]} 22... Qb7 {[%clk 0:01:12.3]} 23. Rad1 {[%clk 0:02:45]} 23... Bb6
{[%clk 0:00:54.9]} 24. h6 {[%clk 0:02:38.6]} 24... gxh6 {[%clk 0:00:30.8]} 25.
Bxh6 {[%clk 0:02:32.1]} 25... Nf8 {[%clk 0:00:29.1]} 26. Qf3 {[%clk 0:02:24.7]}
26... N6d7 {[%clk 0:00:21.3]} 27. Nh5 {[%clk 0:02:15.4]} 27... f5 {[%clk
0:00:10.6]} 28. Bxf5 {[%clk 0:02:06.9]} 28... Nc5 {[%clk 0:00:10.9]} 29. Nxc5
{[%clk 0:01:44.2]} 29... Bxc5 {[%clk 0:00:11.8]} 30. Qg4+ {[%clk 0:01:31.6]}
30... Kh8 {[%clk 0:00:07.1]} 31. Bg7+ {[%clk 0:01:30.4]} 1-0

[Event "*** Titled Tuesday Blitz"]
[Site "Chess.com"]
[Date "2020.12.29"]
[Round "8"]
[White "MuhittinBuker"]
[Black "CraiggoryC"]
[Result "1-0"]
[WhiteElo "2126"]
[BlackElo "2188"]
[TimeControl "180+1"]
[EndTime "11:26:25 PST"]
[Termination "MuhittinBuker won by checkmate"]

1. d4 {[%clk 0:03:00.9]} 1... Nf6 {[%clk 0:02:59.7]} 2. c4 {[%clk 0:02:59.4]}
2... g6 {[%clk 0:03:00.1]} 3. Nc3 {[%clk 0:02:58.7]} 3... Bg7 {[%clk 0:03:00.4]}
4. e4 {[%clk 0:02:59.1]} 4... O-O {[%clk 0:03:00.9]} 5. Nf3 {[%clk 0:02:59.4]}
5... c5 {[%clk 0:03:01.2]} 6. d5 {[%clk 0:02:58.8]} 6... d6 {[%clk 0:03:01.2]}
7. Be2 {[%clk 0:02:57.6]} 7... e6 {[%clk 0:03:01.7]} 8. O-O {[%clk 0:02:57.6]}
8... exd5 {[%clk 0:03:01.7]} 9. cxd5 {[%clk 0:02:57.7]} 9... a6 {[%clk
0:02:58.6]} 10. a4 {[%clk 0:02:56.7]} 10... Re8 {[%clk 0:02:54]} 11. h3 {[%clk
0:02:54.5]} 11... Nxe4 {[%clk 0:02:51.8]} 12. Nxe4 {[%clk 0:02:53]} 12... Rxe4
{[%clk 0:02:51.9]} 13. Bg5 {[%clk 0:02:50]} 13... Bf6 {[%clk 0:02:44.3]} 14. Bd3
{[%clk 0:02:45.9]} 14... Re8 {[%clk 0:02:31.1]} 15. Bh6 {[%clk 0:02:42.7]} 15...
Nd7 {[%clk 0:02:26.8]} 16. Re1 {[%clk 0:02:41.9]} 16... Ne5 {[%clk 0:01:44.1]}
17. Nxe5 {[%clk 0:02:40.5]} 17... Rxe5 {[%clk 0:01:39.9]} 18. Rxe5 {[%clk
0:02:38.8]} 18... Bxe5 {[%clk 0:01:39.8]} 19. Qe2 {[%clk 0:02:35.8]} 19... Bd7
{[%clk 0:01:30.1]} 20. Re1 {[%clk 0:02:34.4]} 20... Bxa4 {[%clk 0:01:19.6]} 21.
Kh1 {[%clk 0:02:28.4]} 21... Bg7 {[%clk 0:01:10.4]} 22. Bf4 {[%clk 0:02:26.7]}
22... Qf6 {[%clk 0:01:04.6]} 23. Qg4 {[%clk 0:02:07.9]} 23... h5 {[%clk
0:00:30]} 24. Qg3 {[%clk 0:02:02.7]} 24... Qxb2 {[%clk 0:00:27.2]} 25. Bxd6
{[%clk 0:02:00.4]} 25... Qc3 {[%clk 0:00:19.7]} 26. Re7 {[%clk 0:01:49.6]} 26...
Re8 {[%clk 0:00:17.2]} 27. Rxf7 {[%clk 0:01:26.9]} 27... Qa1+ {[%clk 0:00:09.9]}
28. Kh2 {[%clk 0:01:24.8]} 28... Kxf7 {[%clk 0:00:09.5]} 29. Qxg6+ {[%clk
0:01:22.5]} 29... Kg8 {[%clk 0:00:08.6]} 30. Qxe8+ {[%clk 0:01:22.5]} 30... Bf8
{[%clk 0:00:07.3]} 31. Qxf8# {[%clk 0:01:22]} 1-0

[Event "*** Titled Tuesday Blitz"]
[Site "Chess.com"]
[Date "2020.12.29"]
[Round "8"]
[White "MillyNeuf"]
[Black "AdarshIsMe"]
[Result "1-0"]
[WhiteElo "2334"]
[BlackElo "2195"]
[TimeControl "180+1"]
[EndTime "11:26:26 PST"]
[Termination "MillyNeuf won by resignation"]

1. e4 {[%clk 0:03:00.9]} 1... c5 {[%clk 0:02:59.4]} 2. Nc3 {[%clk 0:03:00.2]}
2... g6 {[%clk 0:02:57.7]} 3. g3 {[%clk 0:03:00.2]} 3... Bg7 {[%clk 0:02:57.7]}
4. Bg2 {[%clk 0:02:59.3]} 4... Nc6 {[%clk 0:02:58.1]} 5. d3 {[%clk 0:02:59.1]}
5... d6 {[%clk 0:02:56]} 6. Be3 {[%clk 0:02:57.7]} 6... e5 {[%clk 0:02:52.1]} 7.
Qd2 {[%clk 0:02:53.8]} 7... Nge7 {[%clk 0:02:51.8]} 8. Nge2 {[%clk 0:02:53.6]}
8... O-O {[%clk 0:02:50.9]} 9. Bh6 {[%clk 0:02:53.6]} 9... Bxh6 {[%clk
0:02:46.1]} 10. Qxh6 {[%clk 0:02:53]} 10... f6 {[%clk 0:02:46.5]} 11. h4 {[%clk
0:02:51]} 11... Nd4 {[%clk 0:02:45.8]} 12. Nxd4 {[%clk 0:02:49.5]} 12... cxd4
{[%clk 0:02:44.9]} 13. Ne2 {[%clk 0:02:46.5]} 13... Qa5+ {[%clk 0:02:36.6]} 14.
Qd2 {[%clk 0:02:45.8]} 14... Qxd2+ {[%clk 0:02:32.7]} 15. Kxd2 {[%clk
0:02:46.7]} 15... Be6 {[%clk 0:02:32.9]} 16. c3 {[%clk 0:02:45.8]} 16... dxc3+
{[%clk 0:02:31.9]} 17. bxc3 {[%clk 0:02:46.7]} 17... Nc6 {[%clk 0:02:20.1]} 18.
Rhb1 {[%clk 0:02:31.2]} 18... Na5 {[%clk 0:02:19.4]} 19. Rb4 {[%clk 0:02:27.4]}
19... Rac8 {[%clk 0:02:14.6]} 20. c4 {[%clk 0:02:12]} 20... Rc5 {[%clk
0:02:05.3]} 21. Rab1 {[%clk 0:02:05.7]} 21... Rfc8 {[%clk 0:02:01]} 22. Nc3
{[%clk 0:02:03.4]} 22... b6 {[%clk 0:01:51.5]} 23. Bf3 {[%clk 0:01:57.3]} 23...
Nc6 {[%clk 0:01:50.8]} 24. R4b2 {[%clk 0:01:54.1]} 24... Nd4 {[%clk 0:01:45.6]}
25. Bd1 {[%clk 0:01:54.4]} 25... Ra5 {[%clk 0:01:33.9]} 26. Bb3 {[%clk
0:01:35.5]} 26... Kf7 {[%clk 0:01:28.3]} 27. Ne2 {[%clk 0:01:31.2]} 27... Nxe2
{[%clk 0:01:10.5]} 28. Kxe2 {[%clk 0:01:30.1]} 28... Ra3 {[%clk 0:01:05.4]} 29.
Ke3 {[%clk 0:01:25.3]} 29... Rc5 {[%clk 0:01:02.7]} 30. f4 {[%clk 0:01:20.8]}
30... Rca5 {[%clk 0:00:58.6]} 31. h5 {[%clk 0:01:13.8]} 31... gxh5 {[%clk
0:00:53]} 32. f5 {[%clk 0:01:13]} 32... Bd7 {[%clk 0:00:51.3]} 33. Rh1 {[%clk
0:01:11.3]} 33... Ba4 {[%clk 0:00:51.3]} 34. Rxh5 {[%clk 0:01:09.7]} 34... Bxb3
{[%clk 0:00:48.1]} 35. axb3 {[%clk 0:01:09.4]} 35... Kg7 {[%clk 0:00:48]} 36.
Rbh2 {[%clk 0:01:07.1]} 36... Rxb3 {[%clk 0:00:46.7]} 37. Rxh7+ {[%clk
0:01:06.9]} 37... Kg8 {[%clk 0:00:45.2]} 38. Rh8+ {[%clk 0:01:07.2]} 1-0

[Event "*** Titled Tuesday Blitz"]
[Site "Chess.com"]
[Date "2020.12.29"]
[Round "8"]
[White "ftorodent"]
[Black "Vamostodorecto"]
[Result "1-0"]
[WhiteElo "2644"]
[BlackElo "2443"]
[TimeControl "180+1"]
[EndTime "11:26:34 PST"]
[Termination "ftorodent won by resignation"]

1. d4 {[%clk 0:03:00.9]} 1... Nf6 {[%clk 0:02:58.9]} 2. c4 {[%clk 0:03:00.9]}
2... g6 {[%clk 0:02:59.6]} 3. Nf3 {[%clk 0:02:59.5]} 3... Bg7 {[%clk 0:02:58.5]}
4. Nc3 {[%clk 0:02:59.8]} 4... d5 {[%clk 0:02:59.1]} 5. cxd5 {[%clk 0:02:59.7]}
5... Nxd5 {[%clk 0:03:00]} 6. Bg5 {[%clk 0:02:59.8]} 6... Nb6 {[%clk 0:02:49.7]}
7. e3 {[%clk 0:02:45.7]} 7... O-O {[%clk 0:02:46.3]} 8. Be2 {[%clk 0:02:43.3]}
8... h6 {[%clk 0:02:41.3]} 9. Bh4 {[%clk 0:02:42.8]} 9... Be6 {[%clk 0:02:39.9]}
10. O-O {[%clk 0:02:40.4]} 10... N8d7 {[%clk 0:02:39.3]} 11. d5 {[%clk
0:02:20.7]} 11... Bg4 {[%clk 0:02:39.2]} 12. h3 {[%clk 0:02:20.4]} 12... Bxf3
{[%clk 0:02:36]} 13. Bxf3 {[%clk 0:02:20.7]} 13... Nc4 {[%clk 0:02:33.8]} 14.
Be2 {[%clk 0:02:11.9]} 14... Nxb2 {[%clk 0:02:24.1]} 15. Qb3 {[%clk 0:02:11.8]}
15... Nb6 {[%clk 0:02:24.8]} 16. Rac1 {[%clk 0:01:32.2]} 16... a5 {[%clk
0:01:40.2]} 17. Qxb2 {[%clk 0:01:16.8]} 17... Na4 {[%clk 0:01:40.2]} 18. Qb3
{[%clk 0:01:05.1]} 18... Nxc3 {[%clk 0:01:39.1]} 19. Rxc3 {[%clk 0:01:05.2]}
19... a4 {[%clk 0:01:39.7]} 20. Qc2 {[%clk 0:01:04.8]} 20... Bxc3 {[%clk
0:01:38.3]} 21. Qxc3 {[%clk 0:01:04.7]} 21... Qxd5 {[%clk 0:01:38.5]} 22. Bxe7
{[%clk 0:01:04.5]} 22... Rfe8 {[%clk 0:01:36.6]} 23. Bc4 {[%clk 0:00:57.9]}
23... Qc6 {[%clk 0:01:25.7]} 24. Bf6 {[%clk 0:00:53.9]} 24... Re4 {[%clk
0:01:22.3]} 25. Bh8 {[%clk 0:00:35.2]} 1-0

[Event "*** Titled Tuesday Blitz"]
[Site "Chess.com"]
[Date "2020.12.29"]
[Round "8"]
[White "Keranke"]
[Black "FairChess_on_YouTube"]
[Result "0-1"]
[WhiteElo "2832"]
[BlackElo "3005"]
[TimeControl "180+1"]
[EndTime "11:26:43 PST"]
[Termination "FairChess_on_YouTube won by resignation"]

1. Nf3 {[%clk 0:03:00.4]} 1... Nf6 {[%clk 0:02:59.2]} 2. g3 {[%clk 0:03:01.3]}
2... b5 {[%clk 0:02:56.8]} 3. Bg2 {[%clk 0:03:01.1]} 3... Bb7 {[%clk 0:02:57.2]}
4. O-O {[%clk 0:03:01.8]} 4... e6 {[%clk 0:02:57.4]} 5. d4 {[%clk 0:03:02.4]}
5... c5 {[%clk 0:02:56.1]} 6. a4 {[%clk 0:03:02.8]} 6... b4 {[%clk 0:02:55.8]}
7. dxc5 {[%clk 0:03:03.7]} 7... Bxc5 {[%clk 0:02:55.2]} 8. a5 {[%clk 0:03:04]}
8... O-O {[%clk 0:02:52.6]} 9. Nbd2 {[%clk 0:01:59.9]} 9... Na6 {[%clk
0:02:43.5]} 10. Nc4 {[%clk 0:01:58.1]} 10... Qe7 {[%clk 0:02:35.5]} 11. Bf4
{[%clk 0:01:57]} 11... d5 {[%clk 0:02:32.6]} 12. Nce5 {[%clk 0:01:57.1]} 12...
Rac8 {[%clk 0:02:31.5]} 13. Nd3 {[%clk 0:01:53.2]} 13... Bd6 {[%clk 0:02:28.8]}
14. Bxd6 {[%clk 0:01:49]} 14... Qxd6 {[%clk 0:02:29.7]} 15. Nfe5 {[%clk
0:01:49.6]} 15... Rfd8 {[%clk 0:02:25.9]} 16. Qb1 {[%clk 0:01:36.6]} 16... Ne4
{[%clk 0:02:20.6]} 17. Rd1 {[%clk 0:01:32.2]} 17... Qc7 {[%clk 0:02:19.6]} 18.
Rc1 {[%clk 0:01:14.9]} 18... f6 {[%clk 0:02:09.8]} 19. Nf3 {[%clk 0:01:14.4]}
19... e5 {[%clk 0:02:09.9]} 20. Ra4 {[%clk 0:01:10]} 20... Bc6 {[%clk
0:02:03.7]} 21. Ra1 {[%clk 0:01:05.9]} 21... Bb5 {[%clk 0:02:03.5]} 22. Qa2
{[%clk 0:01:04]} 22... Kh8 {[%clk 0:01:59]} 23. Qb3 {[%clk 0:00:54.4]} 23... Bc4
{[%clk 0:01:52.7]} 24. Qa4 {[%clk 0:00:54.5]} 24... Rb8 {[%clk 0:01:51.6]} 25.
c3 {[%clk 0:00:30]} 25... bxc3 {[%clk 0:01:49.7]} 26. bxc3 {[%clk 0:00:30.9]}
26... Nac5 {[%clk 0:01:48.1]} 27. Nxc5 {[%clk 0:00:27.9]} 27... Nxc5 {[%clk
0:01:49]} 28. Qa3 {[%clk 0:00:28]} 28... Nb3 {[%clk 0:01:48.1]} 29. e3 {[%clk
0:00:27.8]} 29... Rb5 {[%clk 0:01:31.1]} 30. a6 {[%clk 0:00:26.6]} 30... Ra5
{[%clk 0:01:26.8]} 31. Qb2 {[%clk 0:00:26.6]} 31... Nxc1 {[%clk 0:01:16.8]} 32.
Qxc1 {[%clk 0:00:25]} 32... Rxa6 {[%clk 0:01:13.6]} 33. Rxa6 {[%clk 0:00:22.8]}
33... Bxa6 {[%clk 0:01:14.5]} 34. Qa3 {[%clk 0:00:23.7]} 34... Qd6 {[%clk
0:01:10.4]} 35. Qa5 {[%clk 0:00:23.4]} 35... Qb6 {[%clk 0:01:09.7]} 0-1

[Event "*** Titled Tuesday Blitz"]
[Site "Chess.com"]
[Date "2020.12.29"]
[Round "8"]
[White "TigrVShlyape"]
[Black "Bulldog167"]
[Result "1-0"]
[WhiteElo "2870"]
[BlackElo "2709"]
[TimeControl "180+1"]
[EndTime "11:26:44 PST"]
[Termination "TigrVShlyape won by checkmate"]

1. e4 {[%clk 0:03:00.9]} 1... e6 {[%clk 0:02:58.7]} 2. d4 {[%clk 0:02:59.2]}
2... d5 {[%clk 0:02:59]} 3. Nc3 {[%clk 0:02:58.1]} 3... Bb4 {[%clk 0:02:58.9]}
4. e5 {[%clk 0:02:56.3]} 4... c5 {[%clk 0:02:59.1]} 5. a3 {[%clk 0:02:56.2]}
5... Bxc3+ {[%clk 0:02:59.8]} 6. bxc3 {[%clk 0:02:56.6]} 6... Ne7 {[%clk
0:03:00.7]} 7. Qg4 {[%clk 0:02:54.1]} 7... Qc7 {[%clk 0:03:00]} 8. Bd3 {[%clk
0:02:52.1]} 8... c4 {[%clk 0:03:00.1]} 9. Be2 {[%clk 0:02:51.4]} 9... Nf5 {[%clk
0:03:00.7]} 10. h4 {[%clk 0:02:49.5]} 10... Qa5 {[%clk 0:03:00.9]} 11. Bd2
{[%clk 0:02:38.4]} 11... Qa4 {[%clk 0:03:01.1]} 12. Bd1 {[%clk 0:02:36.9]} 12...
Nc6 {[%clk 0:03:01.1]} 13. h5 {[%clk 0:02:34.6]} 13... h6 {[%clk 0:03:00.9]} 14.
Ne2 {[%clk 0:02:26]} 14... Bd7 {[%clk 0:03:01.1]} 15. Nf4 {[%clk 0:02:10.6]}
15... O-O-O {[%clk 0:02:57.1]} 16. O-O {[%clk 0:01:40.8]} 16... f6 {[%clk
0:02:30.1]} 17. Ng6 {[%clk 0:01:35.7]} 17... Rhg8 {[%clk 0:02:27.4]} 18. Re1
{[%clk 0:01:31.7]} 18... Qa5 {[%clk 0:02:07.2]} 19. Qf4 {[%clk 0:01:18.5]} 19...
fxe5 {[%clk 0:01:53.5]} 20. Nxe5 {[%clk 0:01:16.2]} 20... Nxe5 {[%clk
0:01:53.5]} 21. Qxe5 {[%clk 0:01:15.4]} 21... g6 {[%clk 0:01:40]} 22. Bf4 {[%clk
0:01:13.9]} 22... Bc6 {[%clk 0:01:21.2]} 23. Qxe6+ {[%clk 0:01:13.4]} 23... Bd7
{[%clk 0:01:21.2]} 24. Qe5 {[%clk 0:01:13.7]} 24... Bc6 {[%clk 0:01:21.1]} 25.
hxg6 {[%clk 0:01:12.8]} 25... Nd6 {[%clk 0:01:19.1]} 26. Bg4+ {[%clk 0:01:10.8]}
26... Kc7 {[%clk 0:01:18.5]} 27. Qe7+ {[%clk 0:01:10.1]} 27... Kb6 {[%clk
0:01:16.1]} 28. Bxd6 {[%clk 0:01:09.3]} 28... Qxc3 {[%clk 0:01:16.4]} 29. Bc7+
{[%clk 0:01:01.1]} 29... Ka6 {[%clk 0:01:15.2]} 30. Bxd8 {[%clk 0:01:00.4]}
30... Rxg6 {[%clk 0:01:15.6]} 31. Bf5 {[%clk 0:00:50.4]} 31... Rg5 {[%clk
0:01:14.8]} 32. Qe5 {[%clk 0:00:47.8]} 32... Rg8 {[%clk 0:00:57.1]} 33. Qc7
{[%clk 0:00:46.4]} 33... Ba4 {[%clk 0:00:43.1]} 34. Re6+ {[%clk 0:00:43.8]}
34... b6 {[%clk 0:00:42.2]} 35. Rxb6+ {[%clk 0:00:43.8]} 35... axb6 {[%clk
0:00:43.1]} 36. Qxb6# {[%clk 0:00:44]} 1-0